[Event "Early-Titled-Tuesday-Blitz-September-05-2023"]
[Site "Chess.com"]
[Date "2023.09.05"]
[Round "10"]
[White "stepanosinovsky"]
[Black "DeArron_Fox"]
[Result "1-0"]
[WhiteElo "2319"]
[BlackElo "2479"]
[TimeControl "180+1"]
[EndTime "9:55:22 PDT"]
[Termination "stepanosinovsky won by resignation"]

1. Nf3 {[%clk 0:03:00.9]} 1... d5 {[%clk 0:02:59.4]} 2. g3 {[%clk 0:03:01.2]}
2... Nf6 {[%clk 0:02:59.5]} 3. Bg2 {[%clk 0:03:01.7]} 3... e6 {[%clk 0:02:59.6]}
4. O-O {[%clk 0:03:02.6]} 4... Be7 {[%clk 0:02:59.7]} 5. d3 {[%clk 0:03:03.5]}
5... O-O {[%clk 0:02:59.5]} 6. Nbd2 {[%clk 0:03:04.4]} 6... c5 {[%clk
0:02:59.8]} 7. e4 {[%clk 0:03:05]} 7... Nc6 {[%clk 0:03:00.5]} 8. Re1 {[%clk
0:03:05]} 8... Qc7 {[%clk 0:03:00.2]} 9. c3 {[%clk 0:03:04.4]} 9... b5 {[%clk
0:02:55.8]} 10. exd5 {[%clk 0:03:03.4]} 10... Nxd5 {[%clk 0:02:54.3]} 11. h4
{[%clk 0:03:02.8]} 11... Bb7 {[%clk 0:02:51.6]} 12. h5 {[%clk 0:03:02.6]} 12...
h6 {[%clk 0:02:51.2]} 13. Ne4 {[%clk 0:02:59.8]} 13... Rfd8 {[%clk 0:02:48]} 14.
Qe2 {[%clk 0:02:59]} 14... a5 {[%clk 0:02:40.5]} 15. a4 {[%clk 0:02:56.8]} 15...
bxa4 {[%clk 0:02:27.8]} 16. Rxa4 {[%clk 0:02:55.6]} 16... Ba6 {[%clk 0:02:16.4]}
17. Nfd2 {[%clk 0:02:47.7]} 17... Nb6 {[%clk 0:02:11.5]} 18. Ra1 {[%clk
0:02:21.8]} 18... Bxd3 {[%clk 0:02:09.9]} 19. Qg4 {[%clk 0:02:04.7]} 19... f5
{[%clk 0:02:09.1]} 20. Qg6 {[%clk 0:02:04.1]} 20... fxe4 {[%clk 0:02:03.3]} 21.
Nxe4 {[%clk 0:01:59.4]} 21... Bf8 {[%clk 0:01:36.7]} 22. Bxh6 {[%clk 0:01:45.8]}
22... Qf7 {[%clk 0:01:36.1]} 23. Qxf7+ {[%clk 0:01:40.6]} 23... Kxf7 {[%clk
0:01:37]} 24. Ng5+ {[%clk 0:01:40.7]} 24... Kg8 {[%clk 0:01:36.2]} 25. Bxc6
{[%clk 0:01:32.1]} 25... Rac8 {[%clk 0:00:56.9]} 26. Bb7 {[%clk 0:01:14.5]}
26... Rb8 {[%clk 0:00:56.9]} 27. Nxe6 {[%clk 0:01:13.9]} 27... Rd6 {[%clk
0:00:27.2]} 28. Bf4 {[%clk 0:00:55.7]} 28... Rxe6 {[%clk 0:00:22.2]} 29. Rxe6
{[%clk 0:00:55.5]} 29... Rxb7 {[%clk 0:00:22.3]} 30. Rxa5 {[%clk 0:00:52.2]}
30... Kf7 {[%clk 0:00:12.9]} 31. Rc6 {[%clk 0:00:51.8]} 31... Nc4 {[%clk
0:00:08.2]} 32. Ra8 {[%clk 0:00:48.7]} 32... Nxb2 {[%clk 0:00:04.1]} 33. g4
{[%clk 0:00:24.7]} 33... Nd1 {[%clk 0:00:03.2]} 34. g5 {[%clk 0:00:21.7]} 34...
Nxc3 {[%clk 0:00:01.8]} 35. g6+ {[%clk 0:00:20.1]} 35... Ke7 {[%clk 0:00:02.4]}
36. Rcc8 {[%clk 0:00:16.9]} 36... Ne2+ {[%clk 0:00:02.3]} 37. Kh2 {[%clk
0:00:16.4]} 37... Nxf4 {[%clk 0:00:03.2]} 38. Rxf8 {[%clk 0:00:16.4]} 38... Nxg6
{[%clk 0:00:02.7]} 39. hxg6 {[%clk 0:00:15]} 39... Bxg6 {[%clk 0:00:03.6]} 40.
Rf3 {[%clk 0:00:12.6]} 40... Rb2 {[%clk 0:00:02.7]} 41. Kg3 {[%clk 0:00:11.4]}
41... Ke6 {[%clk 0:00:02.1]} 42. Ra7 {[%clk 0:00:10.9]} 42... Be4 {[%clk
0:00:01.5]} 43. Re3 {[%clk 0:00:10.9]} 43... Kd5 {[%clk 0:00:02]} 44. Rd7+
{[%clk 0:00:11.1]} 44... Kc6 {[%clk 0:00:02.1]} 45. Rxg7 {[%clk 0:00:10.4]}
45... Bd5 {[%clk 0:00:02.5]} 46. Re5 {[%clk 0:00:08.9]} 46... c4 {[%clk
0:00:02.4]} 47. Rg6+ {[%clk 0:00:07.7]} 47... Kc5 {[%clk 0:00:03]} 48. Rgg5
{[%clk 0:00:08.1]} 48... Rd2 {[%clk 0:00:03.6]} 49. Re8 {[%clk 0:00:07.4]} 49...
c3 {[%clk 0:00:03.5]} 50. Rc8+ {[%clk 0:00:06.5]} 50... Kd4 {[%clk 0:00:03]} 51.
Rg4+ {[%clk 0:00:05.8]} 51... Kd3 {[%clk 0:00:03.2]} 52. Ra4 {[%clk 0:00:04.4]}
52... c2 {[%clk 0:00:02.6]} 53. Ra3+ {[%clk 0:00:03.6]} 53... Ke2 {[%clk
0:00:02.7]} 54. Ra1 {[%clk 0:00:02.1]} 54... Rd1 {[%clk 0:00:02.2]} 55. Rxc2+
{[%clk 0:00:01.5]} 55... Kd3 {[%clk 0:00:02.5]} 56. Rxd1+ {[%clk 0:00:01.1]}
56... Kxc2 {[%clk 0:00:03.4]} 57. Rxd5 {[%clk 0:00:01.5]} 57... Kc3 {[%clk
0:00:04.3]} 58. Re5 {[%clk 0:00:02.1]} 58... Kc4 {[%clk 0:00:05.2]} 59. f4
{[%clk 0:00:02.3]} 59... Kd4 {[%clk 0:00:06.1]} 60. Kg4 {[%clk 0:00:03.2]} 60...
Kc4 {[%clk 0:00:06.2]} 61. Kf5 {[%clk 0:00:04.1]} 61... Kd4 {[%clk 0:00:07.1]}
62. Ke6 {[%clk 0:00:04.4]} 62... Kd3 {[%clk 0:00:08]} 63. f5 {[%clk 0:00:05.2]}
1-0

[Event "Early-Titled-Tuesday-Blitz-September-05-2023"]
[Site "Chess.com"]
[Date "2023.09.05"]
[Round "10"]
[White "amanjazu"]
[Black "Sjakkerntobi"]
[Result "1-0"]
[WhiteElo "2382"]
[BlackElo "2472"]
[TimeControl "180+1"]
[EndTime "9:55:23 PDT"]
[Termination "amanjazu won by checkmate"]

1. b3 {[%clk 0:02:58.6]} 1... e5 {[%clk 0:02:59.7]} 2. Bb2 {[%clk 0:02:59.5]}
2... d6 {[%clk 0:03:00]} 3. d4 {[%clk 0:02:59.3]} 3... e4 {[%clk 0:02:54.9]} 4.
d5 {[%clk 0:02:58.7]} 4... c6 {[%clk 0:02:52.5]} 5. c4 {[%clk 0:02:57.7]} 5...
Nf6 {[%clk 0:02:52.5]} 6. e3 {[%clk 0:02:55.8]} 6... Na6 {[%clk 0:02:49.7]} 7.
Nc3 {[%clk 0:02:55.7]} 7... Bg4 {[%clk 0:02:48.3]} 8. f3 {[%clk 0:02:45.5]} 8...
Bf5 {[%clk 0:02:47.5]} 9. Nge2 {[%clk 0:02:39.4]} 9... exf3 {[%clk 0:02:42.7]}
10. gxf3 {[%clk 0:02:40.3]} 10... Bg6 {[%clk 0:02:24.9]} 11. Nd4 {[%clk
0:02:27.3]} 11... Rc8 {[%clk 0:02:22.3]} 12. Bh3 {[%clk 0:02:19.9]} 12... Rc7
{[%clk 0:02:21.2]} 13. dxc6 {[%clk 0:02:09.6]} 13... bxc6 {[%clk 0:02:20.4]} 14.
O-O {[%clk 0:02:08.6]} 14... Be7 {[%clk 0:02:18.8]} 15. Nce2 {[%clk 0:01:57.9]}
15... O-O {[%clk 0:02:18.7]} 16. Nf4 {[%clk 0:01:56.9]} 16... d5 {[%clk
0:02:15.7]} 17. cxd5 {[%clk 0:01:52.1]} 17... cxd5 {[%clk 0:02:09.8]} 18. Qe2
{[%clk 0:01:43.5]} 18... Nc5 {[%clk 0:02:07.4]} 19. Rfd1 {[%clk 0:01:27.6]}
19... Re8 {[%clk 0:02:06.1]} 20. Rac1 {[%clk 0:01:20.4]} 20... Bd6 {[%clk
0:02:01.3]} 21. Nxg6 {[%clk 0:01:19]} 21... hxg6 {[%clk 0:01:59.8]} 22. Nb5
{[%clk 0:01:19.1]} 22... Rce7 {[%clk 0:01:48.5]} 23. Nxd6 {[%clk 0:00:53.2]}
23... Qxd6 {[%clk 0:01:47.5]} 24. Ba3 {[%clk 0:00:53.3]} 24... Rxe3 {[%clk
0:01:46.3]} 25. Qf1 {[%clk 0:00:50]} 25... Qf4 {[%clk 0:01:21.7]} 26. Bxc5
{[%clk 0:00:49.1]} 26... Rxf3 {[%clk 0:01:22]} 27. Qg2 {[%clk 0:00:41.1]} 27...
Ne4 {[%clk 0:01:18]} 28. Rf1 {[%clk 0:00:34.3]} 28... Ng5 {[%clk 0:01:09.9]} 29.
Bg4 {[%clk 0:00:21.7]} 29... Rxf1+ {[%clk 0:01:04.9]} 30. Rxf1 {[%clk
0:00:22.6]} 30... Qc7 {[%clk 0:00:57.5]} 31. Qxd5 {[%clk 0:00:21.8]} 31... Ne4
{[%clk 0:00:49.1]} 32. Bd7 {[%clk 0:00:17.2]} 32... Nf6 {[%clk 0:00:38.8]} 33.
Rxf6 {[%clk 0:00:16.8]} 33... Re1+ {[%clk 0:00:30.8]} 34. Rf1 {[%clk 0:00:14.5]}
34... Rxf1+ {[%clk 0:00:23.3]} 35. Kxf1 {[%clk 0:00:15.4]} 35... Qf4+ {[%clk
0:00:24.1]} 36. Bf2 {[%clk 0:00:14.1]} 36... Qc1+ {[%clk 0:00:24.1]} 37. Kg2
{[%clk 0:00:13.6]} 37... Qf4 {[%clk 0:00:22.9]} 38. Bg3 {[%clk 0:00:12.9]} 38...
Qf6 {[%clk 0:00:20.6]} 39. Qa8+ {[%clk 0:00:12.6]} 39... Kh7 {[%clk 0:00:20.6]}
40. Qe4 {[%clk 0:00:13.5]} 40... Qb2+ {[%clk 0:00:19.6]} 41. Kh3 {[%clk
0:00:12.3]} 41... Qxa2 {[%clk 0:00:20.2]} 42. Qc4 {[%clk 0:00:09.3]} 42... Qd2
{[%clk 0:00:15.6]} 43. Qxf7 {[%clk 0:00:08.2]} 43... Qa5 {[%clk 0:00:10.7]} 44.
Bg4 {[%clk 0:00:07.6]} 44... Qg5 {[%clk 0:00:10.6]} 45. Bf4 {[%clk 0:00:06.9]}
45... Qb5 {[%clk 0:00:08.7]} 46. Be6 {[%clk 0:00:06]} 46... Qf1+ {[%clk
0:00:08.5]} 47. Kg3 {[%clk 0:00:05]} 47... Qg1+ {[%clk 0:00:08.8]} 48. Kf3
{[%clk 0:00:05.9]} 48... Qf1+ {[%clk 0:00:09.1]} 49. Ke4 {[%clk 0:00:06.5]}
49... Qe2+ {[%clk 0:00:09.5]} 50. Kd4 {[%clk 0:00:07]} 50... Qd1+ {[%clk
0:00:09.5]} 51. Kc3 {[%clk 0:00:07.1]} 51... Qe1+ {[%clk 0:00:09.4]} 52. Bd2
{[%clk 0:00:07.1]} 52... Qe5+ {[%clk 0:00:08.8]} 53. Kc2 {[%clk 0:00:07.3]}
53... Qc5+ {[%clk 0:00:08.2]} 54. Kb1 {[%clk 0:00:07.7]} 54... Qg1+ {[%clk
0:00:07.8]} 55. Kc2 {[%clk 0:00:06.7]} 55... Qc5+ {[%clk 0:00:07.8]} 56. Bc3
{[%clk 0:00:07.2]} 56... Kh6 {[%clk 0:00:06.6]} 57. Qxg7+ {[%clk 0:00:07.3]}
57... Kh5 {[%clk 0:00:06.9]} 58. Qh7+ {[%clk 0:00:07.8]} 58... Kg5 {[%clk
0:00:07.5]} 59. Qg7 {[%clk 0:00:06.9]} 59... Qf2+ {[%clk 0:00:07.3]} 60. Bd2+
{[%clk 0:00:07.1]} 60... Kh4 {[%clk 0:00:05.7]} 61. Qh6# {[%clk 0:00:07.6]} 1-0

[Event "Early-Titled-Tuesday-Blitz-September-05-2023"]
[Site "Chess.com"]
[Date "2023.09.05"]
[Round "10"]
[White "amylazy"]
[Black "crazy_m_attack"]
[Result "0-1"]
[WhiteElo "2437"]
[BlackElo "2371"]
[TimeControl "180+1"]
[EndTime "9:55:41 PDT"]
[Termination "crazy_m_attack won by resignation"]

1. d4 {[%clk 0:02:59.6]} 1... Nf6 {[%clk 0:02:58.7]} 2. Nf3 {[%clk 0:02:59.6]}
2... e6 {[%clk 0:02:58]} 3. e3 {[%clk 0:02:59.6]} 3... d5 {[%clk 0:02:58]} 4.
Bd3 {[%clk 0:02:59.8]} 4... c5 {[%clk 0:02:57.3]} 5. O-O {[%clk 0:03:00.1]} 5...
Nc6 {[%clk 0:02:57.4]} 6. b3 {[%clk 0:03:00.4]} 6... cxd4 {[%clk 0:02:56.1]} 7.
exd4 {[%clk 0:03:00.3]} 7... Bd6 {[%clk 0:02:56.1]} 8. Bb2 {[%clk 0:03:00.8]}
8... O-O {[%clk 0:02:55.4]} 9. Nbd2 {[%clk 0:03:01.1]} 9... Qc7 {[%clk
0:02:54.1]} 10. Re1 {[%clk 0:02:58.3]} 10... Re8 {[%clk 0:02:50.3]} 11. Ne5
{[%clk 0:02:58.4]} 11... Bxe5 {[%clk 0:02:30]} 12. dxe5 {[%clk 0:02:58.2]} 12...
Nd7 {[%clk 0:02:30]} 13. a3 {[%clk 0:02:42.8]} 13... Ndxe5 {[%clk 0:02:18.9]}
14. Bxe5 {[%clk 0:02:41.3]} 14... Nxe5 {[%clk 0:02:19.8]} 15. Bxh7+ {[%clk
0:02:39.6]} 15... Kxh7 {[%clk 0:02:20.7]} 16. Qh5+ {[%clk 0:02:39.6]} 16... Kg8
{[%clk 0:02:21]} 17. Rxe5 {[%clk 0:02:39.5]} 17... Qxc2 {[%clk 0:02:07.4]} 18.
Nf3 {[%clk 0:02:39]} 18... Bd7 {[%clk 0:01:53.4]} 19. Ng5 {[%clk 0:02:37.6]}
19... Qg6 {[%clk 0:01:53.5]} 20. Qxg6 {[%clk 0:02:31.7]} 20... fxg6 {[%clk
0:01:54.4]} 21. Rae1 {[%clk 0:02:27.6]} 21... Rac8 {[%clk 0:01:53.2]} 22. g3
{[%clk 0:02:25.5]} 22... Rc6 {[%clk 0:01:51.7]} 23. b4 {[%clk 0:02:24.4]} 23...
Rd6 {[%clk 0:01:48.8]} 24. h4 {[%clk 0:02:19]} 24... d4 {[%clk 0:01:47.1]} 25.
Ne4 {[%clk 0:02:19.1]} 25... Rc6 {[%clk 0:01:35.4]} 26. Nc5 {[%clk 0:02:18.9]}
26... Bc8 {[%clk 0:01:35.3]} 27. Rd1 {[%clk 0:02:06.8]} 27... Rd8 {[%clk
0:01:30.1]} 28. b5 {[%clk 0:02:00.3]} 28... Rcd6 {[%clk 0:01:25.2]} 29. Rd3
{[%clk 0:01:36.3]} 29... Rd5 {[%clk 0:01:11.9]} 30. Nxe6 {[%clk 0:01:35.5]}
30... Rxe5 {[%clk 0:01:03.1]} 31. Nxd8 {[%clk 0:01:35.1]} 31... Rd5 {[%clk
0:01:02.2]} 32. Nxb7 {[%clk 0:01:31.7]} 32... Bxb7 {[%clk 0:01:02.1]} 33. a4
{[%clk 0:01:31]} 33... Bc8 {[%clk 0:01:02.1]} 34. f3 {[%clk 0:01:29.8]} 34...
Bf5 {[%clk 0:01:01.9]} 35. Rd2 {[%clk 0:01:29.9]} 35... g5 {[%clk 0:00:51]} 36.
hxg5 {[%clk 0:01:28.5]} 36... Bg6 {[%clk 0:00:51]} 37. Kf2 {[%clk 0:01:27.2]}
37... d3 {[%clk 0:00:49.6]} 38. f4 {[%clk 0:01:25.9]} 38... Rd4 {[%clk
0:00:45.7]} 39. a5 {[%clk 0:01:24.5]} 39... Rd5 {[%clk 0:00:45.3]} 40. b6 {[%clk
0:01:24.2]} 40... axb6 {[%clk 0:00:45.6]} 41. axb6 {[%clk 0:01:23.6]} 41... Rb5
{[%clk 0:00:45.6]} 42. g4 {[%clk 0:01:23.5]} 42... Rxb6 {[%clk 0:00:38.2]} 43.
f5 {[%clk 0:01:22.8]} 43... Be8 {[%clk 0:00:38.2]} 44. Rxd3 {[%clk 0:01:22.4]}
44... Kf7 {[%clk 0:00:36]} 45. Ke3 {[%clk 0:01:09.5]} 45... Rb4 {[%clk
0:00:33.3]} 46. Kf3 {[%clk 0:01:06.1]} 46... Bc6+ {[%clk 0:00:32]} 47. Kg3
{[%clk 0:01:06]} 47... Bb5 {[%clk 0:00:31.5]} 48. Re3 {[%clk 0:00:55.6]} 48...
Ba4 {[%clk 0:00:31.6]} 49. Rd3 {[%clk 0:00:45.9]} 49... Re4 {[%clk 0:00:27.7]}
50. Kh4 {[%clk 0:00:39.2]} 50... Bb5 {[%clk 0:00:26.8]} 51. g6+ {[%clk
0:00:33.5]} 51... Kf6 {[%clk 0:00:24.3]} 52. Rd6+ {[%clk 0:00:32.7]} 52... Ke7
{[%clk 0:00:22.3]} 53. Rb6 {[%clk 0:00:26.5]} 53... Be2 {[%clk 0:00:22.2]} 54.
Rb7+ {[%clk 0:00:17.6]} 54... Kf6 {[%clk 0:00:19]} 55. Rf7+ {[%clk 0:00:17.3]}
55... Ke5 {[%clk 0:00:19.1]} 56. Re7+ {[%clk 0:00:09.7]} 56... Kf4 {[%clk
0:00:19.2]} 57. Rxe4+ {[%clk 0:00:09.1]} 57... Kxe4 {[%clk 0:00:18.9]} 58. Kg5
{[%clk 0:00:09.1]} 58... Ke5 {[%clk 0:00:18.8]} 59. Kh4 {[%clk 0:00:08.4]} 59...
Kf4 {[%clk 0:00:18.1]} 60. f6 {[%clk 0:00:04.1]} 60... gxf6 {[%clk 0:00:18]} 61.
g7 {[%clk 0:00:04.5]} 61... Bc4 {[%clk 0:00:17.3]} 62. Kh5 {[%clk 0:00:04.8]}
62... Bf7+ {[%clk 0:00:16.6]} 63. Kh6 {[%clk 0:00:04.9]} 63... Kxg4 {[%clk
0:00:16.7]} 64. Kh7 {[%clk 0:00:05.3]} 64... f5 {[%clk 0:00:17.1]} 65. g8=Q+
{[%clk 0:00:06.2]} 65... Bxg8+ {[%clk 0:00:17.6]} 0-1

[Event "Early-Titled-Tuesday-Blitz-September-05-2023"]
[Site "Chess.com"]
[Date "2023.09.05"]
[Round "10"]
[White "gau248"]
[Black "Mr_Lion22"]
[Result "1/2-1/2"]
[WhiteElo "2581"]
[BlackElo "2454"]
[TimeControl "180+1"]
[EndTime "9:55:56 PDT"]
[Termination "Game drawn - insufficient material"]

1. d4 {[%clk 0:03:00.9]} 1... d5 {[%clk 0:02:57.4]} 2. Nf3 {[%clk 0:03:00.4]}
2... c6 {[%clk 0:02:58]} 3. c4 {[%clk 0:02:58.9]} 3... e6 {[%clk 0:02:58.2]} 4.
Qc2 {[%clk 0:02:55]} 4... dxc4 {[%clk 0:02:56.7]} 5. Qxc4 {[%clk 0:02:52.3]}
5... Nf6 {[%clk 0:02:57.3]} 6. Bg5 {[%clk 0:02:47.7]} 6... b5 {[%clk 0:02:53]}
7. Qc2 {[%clk 0:02:47.3]} 7... Bb7 {[%clk 0:02:53.3]} 8. Nbd2 {[%clk 0:02:42.7]}
8... Nbd7 {[%clk 0:02:53.5]} 9. g3 {[%clk 0:02:42.7]} 9... c5 {[%clk 0:02:38.8]}
10. dxc5 {[%clk 0:02:41.8]} 10... Bxc5 {[%clk 0:02:21.1]} 11. Bg2 {[%clk
0:02:41.4]} 11... Rc8 {[%clk 0:02:16.5]} 12. Qb3 {[%clk 0:02:40]} 12... Qb6
{[%clk 0:02:13]} 13. O-O {[%clk 0:02:38.9]} 13... Bd5 {[%clk 0:02:10.7]} 14. Qd1
{[%clk 0:02:37.8]} 14... Ng4 {[%clk 0:02:08.2]} 15. e3 {[%clk 0:02:36.1]} 15...
h6 {[%clk 0:02:07.5]} 16. h3 {[%clk 0:02:24.2]} 16... hxg5 {[%clk 0:02:03.1]}
17. hxg4 {[%clk 0:02:23.7]} 17... Nf6 {[%clk 0:01:58.1]} 18. Nxg5 {[%clk
0:02:17.5]} 18... Bxe3 {[%clk 0:01:39.9]} 19. Nde4 {[%clk 0:02:16.2]} 19... Bxg5
{[%clk 0:01:13]} 20. Nxg5 {[%clk 0:02:11.5]} 20... Bxg2 {[%clk 0:01:13.6]} 21.
Kxg2 {[%clk 0:02:12.4]} 21... Qb7+ {[%clk 0:01:11.5]} 22. Qf3 {[%clk 0:02:09.2]}
22... Qxf3+ {[%clk 0:01:05.3]} 23. Kxf3 {[%clk 0:02:10.1]} 23... Ke7 {[%clk
0:00:55.1]} 24. Rac1 {[%clk 0:02:08.6]} 24... Nd5 {[%clk 0:00:55.2]} 25. Ne4
{[%clk 0:02:06]} 25... b4 {[%clk 0:00:30.8]} 26. Rfd1 {[%clk 0:02:00.9]} 26...
a5 {[%clk 0:00:30]} 27. g5 {[%clk 0:01:55.7]} 27... f6 {[%clk 0:00:23.1]} 28.
gxf6+ {[%clk 0:01:50.1]} 28... gxf6 {[%clk 0:00:24]} 29. Nc5 {[%clk 0:01:43.4]}
29... Rc6 {[%clk 0:00:23]} 30. Nb3 {[%clk 0:01:37.2]} 30... Rhc8 {[%clk
0:00:23.5]} 31. Rxc6 {[%clk 0:01:13.6]} 31... Rxc6 {[%clk 0:00:24.4]} 32. Re1
{[%clk 0:01:12.1]} 32... e5 {[%clk 0:00:21.8]} 33. Nxa5 {[%clk 0:01:08.3]} 33...
Rc2 {[%clk 0:00:22]} 34. Re2 {[%clk 0:01:04.5]} 34... Rc1 {[%clk 0:00:22.2]} 35.
Nb3 {[%clk 0:01:03]} 35... Rd1 {[%clk 0:00:21.9]} 36. Rd2 {[%clk 0:01:02.6]}
36... Rxd2 {[%clk 0:00:12.9]} 37. Nxd2 {[%clk 0:01:03.5]} 37... f5 {[%clk
0:00:12.9]} 38. a3 {[%clk 0:01:03.3]} 38... e4+ {[%clk 0:00:11.2]} 39. Ke2
{[%clk 0:01:01.3]} 39... bxa3 {[%clk 0:00:10.8]} 40. bxa3 {[%clk 0:01:02.2]}
40... Nc3+ {[%clk 0:00:11.5]} 41. Ke3 {[%clk 0:00:59.9]} 41... Ke6 {[%clk
0:00:11.7]} 42. Nc4 {[%clk 0:00:58.6]} 42... Kd5 {[%clk 0:00:10.6]} 43. Nb2
{[%clk 0:00:57.8]} 43... Ke5 {[%clk 0:00:09.5]} 44. a4 {[%clk 0:00:57.3]} 44...
Nd5+ {[%clk 0:00:10.3]} 45. Ke2 {[%clk 0:00:54.3]} 45... Kd4 {[%clk 0:00:09.1]}
46. f3 {[%clk 0:00:47.7]} 46... Nc3+ {[%clk 0:00:08.4]} 47. Kf2 {[%clk
0:00:45.6]} 47... e3+ {[%clk 0:00:07.9]} 48. Ke1 {[%clk 0:00:45.6]} 48... Kd5
{[%clk 0:00:05.5]} 49. a5 {[%clk 0:00:41.7]} 49... Kc5 {[%clk 0:00:05.9]} 50.
Nd1 {[%clk 0:00:42]} 50... Nd5 {[%clk 0:00:05.2]} 51. Ke2 {[%clk 0:00:41.5]}
51... f4 {[%clk 0:00:03.2]} 52. gxf4 {[%clk 0:00:36]} 52... Nxf4+ {[%clk
0:00:04.1]} 53. Kxe3 {[%clk 0:00:36.9]} 53... Ne6 {[%clk 0:00:03.2]} 54. Nc3
{[%clk 0:00:34.9]} 54... Kc6 {[%clk 0:00:02.2]} 55. Ke4 {[%clk 0:00:34.4]} 55...
Ng5+ {[%clk 0:00:01.1]} 56. Kf4 {[%clk 0:00:29.1]} 56... Nxf3 {[%clk 0:00:01]}
57. Nd5 {[%clk 0:00:11.6]} 57... Kb7 {[%clk 0:00:01.9]} 58. Nb4 {[%clk
0:00:10.7]} 58... Nd4 {[%clk 0:00:01.4]} 59. Ke4 {[%clk 0:00:10.7]} 59... Nb3
{[%clk 0:00:02.1]} 60. a6+ {[%clk 0:00:10.7]} 60... Ka7 {[%clk 0:00:02.5]} 61.
Kd5 {[%clk 0:00:11.3]} 61... Na5 {[%clk 0:00:02.6]} 62. Kc5 {[%clk 0:00:11.3]}
62... Nb3+ {[%clk 0:00:02.8]} 63. Kb5 {[%clk 0:00:11.3]} 63... Nd4+ {[%clk
0:00:03.5]} 64. Ka5 {[%clk 0:00:11.8]} 64... Nb3+ {[%clk 0:00:03.2]} 65. Kb5
{[%clk 0:00:11.6]} 65... Nd4+ {[%clk 0:00:03.8]} 66. Kc4 {[%clk 0:00:12.2]}
66... Ne6 {[%clk 0:00:03.7]} 67. Kb5 {[%clk 0:00:08.6]} 67... Nc7+ {[%clk
0:00:04]} 68. Ka5 {[%clk 0:00:09.5]} 68... Nxa6 {[%clk 0:00:04.7]} 1/2-1/2